bitfinex/quotes_ETHUSD_20240730
["timestamp","ask_amount","ask_price","bid_price","bid_amount"]
[1722317231250,2.41744,3309.3,3308.5,2.418]
[1722317231392,2.41744,3309.3,3308.6,2.41791]
[1722317231606,2.41728,3309.5,3308.7,2.41786]
[1722317231898,2.41744,3309.3,3308.5,2.97900606]
[1722317232074,2.41746,3309.3,3308.5,2.97900606]
[1722317232283,2.41746,3309.3,3308.6,2.41793]
[1722317234192,2.41751,3309.2,3308.5,0.56100606]
[1722317234508,2.41751,3309.2,3308.5,2.41798]
[1722317235213,2.41758,3309.1,3308.3,2.3558]
[1722317235541,2.41758,3309.1,3308.4,2.41808]
[1722317241108,2.41744,3309.3,3308.5,2.41801]
[1722317241310,2.41744,3309.3,3308.6,2.659741]
[1722317241610,2.41715,3309.7,3308.7,2.55273751]
[1722317241844,2.41715,3309.7,3309.0,2.4176]
[1722317242009,4.865,3309.9,3309.0,0.06043397]
[1722317242010,2.417,3309.9,3309.0,0.06043397]
[1722317242216,2.417,3309.9,3309.2,2.41749]
[1722317242423,2.417,3309.9,3309.2,2.47792106]
[1722317242736,2.41707,3309.8,3309.2,2.47792106]
[1722317243107,2.41713,3309.7,3309.2,0.06043106]
[1722317243307,2.41699,3309.9,3309.2,2.47792106]
[1722317244526,2.41686,3310.1,3309.3,2.41741]
[1722317244727,2.41686,3310.1,3309.4,0.0604273]
[1722317244919,2.4167,3310.3,3309.4,0.0604273]
[1722317245254,2.41664,3310.4,3309.7,2.41713]
[1722317245421,5.4896,3310.6,3309.7,2.41713]
[1722317245422,2.4896,3310.6,3309.7,2.41713]
[1722317245760,2.41663,3310.4,3309.7,2.41713]
[1722317246338,0.490601,3310.5,3309.6,0.06042303]
[1722317246544,2.41684,3310.1,3309.6,0.06042303]
[1722317247354,2.41663,3310.4,3309.6,2.47762303]
[1722317247701,2.41663,3310.4,3309.7,2.41706]
[1722317247878,2.4167,3310.3,3309.5,2.47768306]
[1722317248190,2.4167,3310.3,3309.5,0.06042306]
[1722317248191,2.41684,3310.1,3309.5,0.06042306]
[1722317249396,2.41671,3310.3,3309.5,2.47763306]
[1722317249534,2.41671,3310.3,3309.6,2.41715]
[1722317249740,0.7813311,3310.4,3309.7,2.41712]
[1722317249937,3.1980211,3310.4,3309.7,2.41712]
[1722317250171,2.41669,3310.4,3309.7,2.41712]
[1722317250437,2.4896,3310.6,3309.8,2.41706]
[1722317250667,2.41655,3310.5,3309.8,2.41706]
[1722317250978,2.907165,3310.5,3309.8,2.41706]
[1722317252061,2.41641,3310.7,3309.9,2.2892]
[1722317252276,12.09697,3310.9,3309.9,2.2892]
[1722317252277,9.78627,3310.9,3310.1,2.41684]
[1722317252451,2.3107,3311.2,3310.2,2.41677]
[1722317252452,2.41618,3311.0,3310.2,2.41677]
[1722317252655,4.72675,3311.2,3310.3,2.47705009]
[1722317252961,2.41611,3311.1,3310.3,2.47705009]
[1722317253143,2.888791,3311.1,3310.4,37.41661]
[1722317253348,0.472681,3311.1,3310.5,2.41654]
[1722317253980,2.41604,3311.2,3310.5,2.41654]
[1722317253981,2.41604,3311.2,3310.6,35.0]
[1722317254180,9.78587,3311.5,3310.6,39.76607895]
[1722317255276,2.41589,3311.4,3310.6,39.76607895]
[1722317255453,2.41605,3311.2,3310.6,37.2892]
[1722317255654,7.37,3311.5,3310.6,37.2892]
[1722317255888,2.41612,3311.1,3310.6,37.2892]
[1722317256778,2.41619,3311.0,3310.6,37.2892]
[1722317257150,7.37,3311.5,3310.6,35.0]
[1722317257355,2.41624,3311.0,3310.6,35.0]
[1722317257550,2.4584,3311.3,3310.6,35.0]
[1722317257794,0.542433,3311.2,3310.6,35.0]
[1722317258556,2.4164,3310.7,3310.6,35.0]
[1722317261412,0.542433,3311.2,3310.6,35.0]
[1722317261413,2.41613,3311.1,3310.6,35.0]
[1722317261554,2.41611,3311.1,3310.6,35.0]
[1722317261759,2.41611,3311.1,3310.6,37.4242]
[1722317262159,2.41597,3311.3,3310.6,37.4242]
[1722317262885,2.41597,3311.3,3310.6,39.84067]
[1722317263488,2.41597,3311.3,3310.6,37.4242]
[1722317263689,2.657567,3311.3,3310.6,37.4242]
[1722317264597,0.241597,3311.3,3310.6,35.0]
[1722317264818,2.41626,3310.9,3310.6,35.0]
[1722317266604,2.4164,3310.7,3310.6,35.0]
[1722317269557,2.41638,3310.8,3310.0,2.2828]
[1722317269943,2.41638,3310.8,3310.1,37.41681]
[1722317270153,2.41641,3310.7,3310.1,40.46582288]
[1722317272667,2.41641,3310.7,3310.1,38.04901288]
[1722317272866,2.41641,3310.7,3310.1,40.46579288]
[1722317273434,4.83257,3310.9,3310.1,40.46579288]
[1722317273640,2.41638,3310.8,3310.1,40.46579288]
[1722317273945,2.41641,3310.7,3310.2,3.04901288]
[1722317274482,2.41641,3310.7,3310.1,2.41678]
[1722317274769,2.41641,3310.7,3310.3,35.0]
[1722317275194,4.83259,3310.9,3310.3,35.0]
[1722317275702,2.41635,3310.8,3310.3,35.0]
[1722317276450,2.41639,3310.8,3310.3,35.0]
[1722317276748,2.4166,3310.5,3310.3,35.0]
[1722317277510,2.41644,3310.7,3310.3,35.0]
[1722317278053,2.41648,3310.6,3310.3,35.0]
[1722317279896,4.83324,3310.4,3310.3,35.0]
[1722317280826,2.41662,3310.4,3310.3,35.0]
[1722317282233,2.41656,3310.5,3310.3,35.0]
[1722317283282,2.899771,3310.6,3310.3,35.0]
[1722317283896,2.41634,3310.8,3310.3,35.0]
[1722317284302,2.3521,3310.9,3310.3,35.0]
[1722317284303,2.41641,3310.7,3310.3,35.0]
[1722317285329,4.76836,3310.9,3310.3,35.0]
[1722317285330,2.41648,3310.6,3310.3,35.0]
[1722317285700,2.41618,3311.0,3310.3,35.0]
[1722317285900,2.41634,3310.8,3310.3,35.0]
[1722317286624,2.41641,3310.7,3310.3,35.0]
[1722317293721,2.41634,3310.8,3310.3,35.0]
[1722317297179,2.41619,3311.0,3310.4,2.41656]
[1722317297475,4.2875,3311.2,3310.4,2.41656]
[1722317297668,0.59994987,3311.1,3310.5,0.06040999]
[1722317297844,9.78597,3311.3,3310.6,37.41642]
[1722317298045,9.78597,3311.3,3310.8,2.4928]
[1722317298046,7.37,3311.3,3310.8,2.4928]
[1722317298244,2.41591,3311.4,3310.8,2.4928]
[1722317298442,2.41574,3311.7,3310.8,4.96947448]
[1722317298671,2.41583,3311.5,3310.9,37.41625]
[1722317299006,2.41576,3311.6,3310.9,37.41625]
[1722317301099,2.41583,3311.5,3310.9,37.41625]
[1722317301962,2.41567,3311.7,3311.0,2.47652225]
[1722317302158,3.01595577,3311.6,3310.9,3.04901288]
[1722317302470,9.6801,3311.9,3310.8,4.90908]
[1722317302471,2.41583,3311.5,3310.8,4.90908]
[1722317302685,2.41583,3311.5,3311.1,35.0]
[1722317303200,2.41571,3311.7,3311.1,35.0]
[1722317303780,2.41561,3311.8,3311.1,37.4161]
[1722317303978,2.41561,3311.8,3311.1,40.46511288]
[1722317304675,7.37,3311.9,3311.3,2.272]
[1722317304877,7.37,3311.9,3311.4,2.41589]
[1722317305282,7.37,3311.9,3311.4,2.4762813]
[1722317305464,0.02670895,3311.8,3311.5,0.47482813]
[1722317305999,2.41538,3312.1,3311.5,0.47482813]
[1722317306160,2.41538,3312.1,3311.4,2.4762813]
[1722317306161,0.02793008,3311.7,3311.4,2.4762813]
[1722317306364,2.41538,3312.1,3311.4,2.4762813]
[1722317306607,2.41538,3312.1,3311.4,2.41589]
[1722317306811,2.41553,3311.9,3311.3,2.272]
[1722317307270,0.02802028,3311.8,3311.3,2.272]
[1722317307470,0.02802028,3311.8,3311.4,0.468804]
[1722317308192,2.41582,3311.5,3311.1,38.04901288]
[1722317308377,0.02802028,3311.8,3310.9,2.4982]
[1722317308713,2.41608,3311.2,3310.9,2.4982]
[1722317308911,2.41608,3311.2,3310.9,37.4982]
[1722317309071,2.44429221,3311.1,3310.9,35.0]
[1722317309267,2.41612,3311.1,3310.9,35.0]
[1722317309473,0.02817221,3311.0,3310.9,35.0]
[1722317309867,2.44435221,3311.0,3310.9,35.0]
[1722317310096,4.86053221,3311.0,3310.9,35.0]
[1722317310404,2.41629,3310.9,3310.3,2.3464]
[1722317310611,2.41648,3310.6,3310.3,2.3464]
[1722317310772,2.44413866,3310.8,3310.4,35.0]
[1722317310973,2.41637,3310.8,3310.4,35.0]
[1722317311301,0.02776866,3310.7,3310.4,35.0]
[1722317311704,2.41637,3310.8,3310.4,35.0]
[1722317312005,0.02776866,3310.6,3310.4,35.0]
[1722317312207,2.41637,3310.8,3310.4,35.0]
[1722317312610,0.02776866,3310.7,3310.4,35.0]
[1722317312848,0.02776866,3310.7,3310.4,38.04901288]
[1722317313140,2.41604,3311.2,3310.5,2.47695956]
[1722317313356,2.41604,3311.2,3310.6,2.3653]
[1722317313490,0.02759769,3311.1,3310.6,4.84216405]
[1722317313841,0.02759769,3311.1,3310.8,2.41633]
[1722317313989,0.02759769,3311.1,3310.8,2.47673154]
[1722317314191,2.41584,3311.5,3310.7,0.48421641]
[1722317314388,0.02764993,3311.0,3310.7,0.48421641]
[1722317314693,2.41599,3311.3,3310.9,35.0]
[1722317317736,4.83171,3311.5,3310.9,35.0]
[1722317317949,2.41584,3311.5,3310.9,35.0]
[1722317319363,9.78569,3311.7,3311.0,0.06039792]
[1722317319501,9.78569,3311.7,3311.1,2.3739]
[1722317319701,2.41579,3311.6,3311.1,2.3739]
[1722317319948,2.41617,3311.1,3310.6,2.3739]
[1722317320103,2.41614,3311.1,3310.6,2.3739]
[1722317320505,2.41614,3311.1,3310.7,35.0]
[1722317323652,2.41624,3311.0,3310.7,35.0]
[1722317323948,2.41633,3310.8,3310.7,35.0]
[1722317324149,2.41619,3311.0,3310.7,35.0]
[1722317324836,0.0276737,3310.9,3310.7,35.0]
[1722317325047,2.41612,3311.1,3310.7,35.0]
[1722317325435,0.0276737,3311.0,3310.7,35.0]
[1722317327152,2.4438637,3311.0,3310.7,35.0]
[1722317327877,0.0276737,3311.0,3310.7,35.0]
[1722317328186,2.41609,3311.2,3310.7,35.0]
[1722317328399,0.0276737,3310.9,3310.7,35.0]
[1722317328552,2.4163,3310.9,3310.7,35.0]
[1722317328756,0.0276737,3310.8,3310.7,35.0]
[1722317328949,2.4440037,3310.8,3310.7,35.0]
[1722317331012,4.8603337,3310.8,3310.7,35.0]
[1722317331311,4.8603337,3310.8,3310.0,2.2572]
[1722317331312,2.41645,3310.7,3310.0,4.67411]
[1722317331466,0.0275502,3310.6,3310.0,4.67411]
[1722317331666,0.0275502,3310.6,3310.1,35.0]
[1722317331906,2.41645,3310.7,3310.1,35.0]
[1722317332081,2.4440402,3310.6,3310.1,35.0]
[1722317332277,2.41649,3310.6,3310.1,35.0]
[1722317332509,2.41656,3310.5,3310.1,35.0]
[1722317335792,2.41645,3310.7,3310.1,35.0]
[1722317336211,2.41664,3310.4,3310.1,35.0]
[1722317336509,2.41672,3310.3,3310.1,35.0]
[1722317336731,2.41677,3310.2,3310.1,35.0]
[1722317336877,2.658447,3310.2,3310.1,35.0]
[1722317337196,2.44422046,3310.2,3310.1,35.0]
[1722317337807,4.86099046,3310.2,3310.1,35.0]
[1722317338874,2.41696,3310.0,3309.3,2.4174]
[1722317339070,2.41701,3309.9,3309.3,2.4174]
[1722317339414,0.02745046,3309.8,3309.5,35.0]
[1722317339779,2.41701,3309.9,3309.5,35.0]
[1722317340476,2.3109,3310.3,3309.5,35.0]
[1722317340676,0.02745046,3310.2,3309.5,35.0]
[1722317341017,2.41714,3309.7,3309.5,35.0]
[1722317341535,0.23383505,3310.1,3309.5,35.0]
[1722317341536,2.41721,3309.6,3309.5,35.0]
[1722317342315,4.83442,3309.6,3309.5,35.0]
[1722317342481,2.44466046,3309.6,3309.5,35.0]
[1722317342822,2.41721,3309.6,3309.5,35.0]
[1722317343176,2.44466046,3309.6,3309.5,35.0]
[1722317344983,2.98273151,3309.6,3308.6,0.241801]
[1722317345185,2.4691,3309.5,3308.2,2.4302]
[1722317345396,4.88675,3309.0,3308.2,2.4302]
[1722317345585,2.41784,3308.8,3308.3,35.0]
[1722317345780,2.41784,3308.8,3308.4,3.04901288]
[1722317346217,2.41784,3308.8,3308.2,4.84842]
[1722317346520,4.88675,3309.0,3308.5,35.0]
[1722317346823,2.41765,3309.0,3308.5,35.0]
[1722317346999,2.41772,3308.9,3308.5,35.0]
[1722317348329,2.41779,3308.8,3308.5,35.0]
[1722317348623,2.41814,3308.4,3307.7,2.4155]
[1722317349126,2.41814,3308.4,3307.8,35.0]
[1722317351010,2.41816,3308.3,3307.8,35.0]
[1722317352432,2.41823,3308.2,3307.8,35.0]
[1722317353722,2.41812,3308.4,3307.8,35.0]
[1722317354060,2.41812,3308.4,3307.8,36.33832415]
[1722317355117,2.41801,3308.5,3307.9,2.48885366]
[1722317355738,2.41801,3308.5,3308.4,35.0]
[1722317356456,7.37,3309.0,3308.4,37.2537]
[1722317356619,9.78765,3309.0,3308.5,0.06044398]
[1722317357171,9.78765,3309.0,3308.5,2.58055518]
[1722317357370,7.37,3309.0,3308.5,2.58055518]
[1722317358476,2.41743,3309.3,3308.5,2.58055518]
[1722317359171,2.41759,3309.1,3308.5,2.58055518]
[1722317359592,2.41759,3309.1,3308.5,0.06044398]
[1722317359950,2.41759,3309.1,3308.6,35.0]
[1722317360264,2.41735,3309.4,3308.7,2.47829058]
[1722317360647,2.4756,3309.6,3308.7,0.06044058]
[1722317360964,2.4756,3309.6,3308.8,2.4492]
[1722317360965,2.41724,3309.6,3308.8,2.4492]
[1722317361286,2.41724,3309.6,3308.9,2.97088194]
[1722317364164,2.41743,3309.3,3308.9,0.49274906]
[1722317364566,2.41743,3309.3,3308.8,2.4492]
[1722317365347,2.41728,3309.5,3308.8,2.4492]
[1722317365548,2.41728,3309.5,3308.9,0.06043297]
[1722317366068,2.41735,3309.4,3308.8,4.86697]
[1722317366264,2.41756,3309.2,3308.6,2.41794]
[1722317366468,2.41736,3309.4,3308.7,2.41786]
[1722317367611,2.41743,3309.3,3308.7,2.41786]
[1722317368601,2.41751,3309.2,3308.6,2.3971]
[1722317368916,2.4174,3309.4,3308.7,0.481505]
[1722317369822,2.4175,3309.2,3308.7,0.481505]
[1722317370674,2.41735,3309.4,3308.7,2.899355]
[1722317370878,2.41743,3309.3,3308.8,0.06043709]
[1722317371116,2.41743,3309.3,3308.7,2.899355]
[1722317372135,2.41751,3309.2,3308.7,0.481505]
[1722317373044,2.4173,3309.5,3308.7,0.481505]
[1722317373314,2.41736,3309.4,3309.0,35.0]
[1722317375212,2.3102,3309.9,3309.1,2.4324]
[1722317375516,2.3102,3309.9,3309.1,2.49283306]
[1722317375714,2.41711,3309.8,3309.1,2.49283306]
[1722317376435,2.41723,3309.6,3309.1,2.4324]
[1722317378622,2.41723,3309.6,3309.2,35.0]
[1722317378828,2.41729,3309.5,3309.2,35.0]
[1722317379619,2.41718,3309.7,3309.2,35.0]
[1722317381016,2.41718,3309.7,3309.0,2.41763]
[1722317381217,2.41718,3309.7,3309.1,0.060433]
[1722317381515,2.41704,3309.9,3309.2,1.008]
[1722317381716,2.41704,3309.9,3309.3,2.32972825]
[1722317381918,2.41706,3309.8,3309.4,35.0]
[1722317382129,2.41714,3309.7,3309.4,35.0]
[1722317384607,2.41728,3309.5,3309.4,35.0]
[1722317385012,2.41714,3309.7,3309.4,35.0]
[1722317385731,2.41721,3309.6,3309.4,35.0]
[1722317386232,2.41728,3309.5,3309.4,35.0]
[1722317391457,2.41708,3309.8,3309.4,35.0]
[1722317391659,2.41727,3309.6,3309.4,35.0]
[1722317392445,2.41728,3309.5,3309.4,35.0]
[1722317394860,2.41716,3309.7,3309.4,35.0]
[1722317395056,2.41686,3310.1,3309.6,1.008]
[1722317395255,2.41686,3310.1,3309.6,1.06842393]
[1722317396330,2.41672,3310.3,3309.6,1.06842393]
[1722317396331,2.41692,3310.0,3309.6,1.06842393]
[1722317397173,2.41677,3310.2,3309.6,1.06842393]
[1722317397375,2.41685,3310.1,3309.6,1.06842393]
[1722317397532,13.35309039,3310.4,3309.6,1.06842393]
[1722317397533,9.78663,3310.4,3309.8,1.008]
[1722317397729,2.4167,3310.3,3310.0,1.008]
[1722317398049,2.41678,3310.2,3309.6,1.008]
[1722317398249,2.41699,3309.9,3309.6,1.008]
[1722317398555,2.41699,3309.9,3309.7,35.0]
[1722317398742,2.41688,3310.1,3309.7,35.0]
[1722317399353,2.41692,3310.0,3309.7,35.0]
[1722317400575,2.41681,3310.2,3309.7,35.0]
[1722317400872,2.4962,3310.3,3309.7,35.0]
[1722317401034,3.48282,3310.3,3309.7,35.0]
[1722317401230,2.41706,3309.8,3309.7,35.0]
[1722317401729,4.83412,3309.8,3309.7,35.0]
[1722317401990,2.41706,3309.8,3309.7,35.0]
[1722317402788,2.41695,3310.0,3309.7,35.0]
[1722317402949,2.41699,3309.9,3309.7,35.0]
[1722317403545,2.41706,3309.8,3309.7,35.0]
[1722317403779,2.41697,3310.0,3309.7,35.0]
[1722317404649,2.41681,3310.2,3309.7,1.008]
[1722317404850,2.41685,3310.1,3309.7,1.008]
[1722317405072,2.41685,3310.1,3309.8,35.0]
[1722317405780,2.4167,3310.3,3309.8,35.0]
[1722317405998,2.4167,3310.3,3309.9,1.008]
[1722317406357,7.37,3310.4,3309.7,1.008]
[1722317406678,2.41685,3310.1,3310.0,35.0]
[1722317411722,4.8337,3310.1,3310.0,35.0]
[1722317415280,4.86023361,3310.1,3310.0,35.0]
[1722317417192,2.41709,3309.8,3309.5,1.008]
[1722317417509,2.900491,3309.8,3309.5,1.008]
[1722317417715,2.41709,3309.8,3309.6,35.0]
[1722317417922,0.02654313,3309.7,3309.6,35.0]
[1722317418311,2.417,3309.9,3309.6,35.0]
[1722317418675,0.02654313,3309.8,3309.6,35.0]
[1722317419094,2.41713,3309.7,3309.6,35.0]
[1722317420252,2.41701,3309.9,3309.6,35.0]
[1722317420458,0.02654313,3309.7,3309.6,35.0]
[1722317420627,2.41701,3309.9,3309.6,35.0]
[1722317420823,0.02654313,3309.7,3309.6,35.0]
[1722317421015,2.41701,3309.9,3309.6,35.0]
[1722317421212,2.41693,3310.0,3309.7,1.008]
[1722317421553,2.41685,3310.1,3309.7,3.472]
[1722317421922,2.41685,3310.1,3309.8,35.0]
[1722317422325,3.38466,3310.3,3309.8,35.0]
[1722317423555,2.41685,3310.1,3309.9,1.008]
[1722317424157,2.41696,3310.0,3309.7,3.472]
[1722317424327,2.41685,3310.1,3309.7,3.472]
[1722317424658,2.41685,3310.1,3310.0,35.0]
[1722317425418,4.83346,3310.3,3310.0,35.0]
[1722317425665,2.41671,3310.3,3310.0,35.0]
[1722317425955,9.78663,3310.4,3310.0,35.0]
[1722317426265,2.4167,3310.3,3310.0,35.0]
[1722317426816,7.37,3310.4,3310.0,35.0]
[1722317427030,7.37,3310.4,3310.1,1.008]
[1722317427257,2.41656,3310.5,3310.2,2.2562]
[1722317428082,2.2854,3310.9,3310.3,1.008]
[1722317428246,2.41634,3310.8,3310.5,1.008]
[1722317428968,2.41634,3310.8,3310.6,35.0]
[1722317429143,2.41627,3310.9,3310.6,35.0]
[1722317430288,9.78618,3311.0,3310.6,35.0]
[1722317430588,2.41626,3310.9,3310.6,35.0]
[1722317431954,2.4164,3310.7,3310.6,35.0]
[1722317432169,4.8328,3310.7,3310.6,35.0]
[1722317433300,2.4164,3310.7,3310.6,35.0]
[1722317434700,3.636547,3310.9,3310.6,35.0]
[1722317434903,2.41631,3310.9,3310.6,35.0]
[1722317435200,2.41626,3310.9,3310.5,1.008]
[1722317435593,7.37,3311.0,3310.6,35.0]
[1722317435594,2.41633,3310.8,3310.6,35.0]
[1722317436221,0.02709901,3310.7,3310.6,35.0]
[1722317436578,2.41627,3310.9,3310.6,35.0]
[1722317436810,0.02709901,3310.7,3310.6,35.0]
[1722317437408,9.78625,3311.0,3310.6,35.0]
[1722317437616,0.02709901,3310.7,3310.6,35.0]
[1722317437784,2.41633,3310.8,3310.6,35.0]
[1722317437967,0.02709901,3310.7,3310.6,35.0]
[1722317438167,2.44349901,3310.7,3310.6,35.0]
[1722317438369,2.4164,3310.7,3310.6,35.0]
[1722317438571,0.02709901,3310.7,3310.6,35.0]
[1722317438884,2.41619,3311.0,3310.6,35.0]
[1722317439087,0.02721775,3310.9,3310.6,35.0]
[1722317439285,2.41638,3310.8,3310.6,35.0]
[1722317439916,0.02721775,3310.7,3310.6,35.0]
[1722317440117,2.41638,3310.8,3310.6,35.0]
[1722317440281,0.02721775,3310.7,3310.6,35.0]
[1722317440487,2.41638,3310.8,3310.6,35.0]
[1722317440690,0.02721775,3310.7,3310.6,35.0]
[1722317441014,2.41633,3310.8,3310.6,35.0]
[1722317441518,0.02721775,3310.7,3310.6,35.0]
[1722317441687,2.41633,3310.8,3310.6,35.0]
[1722317441893,0.02721775,3310.7,3310.6,35.0]
[1722317442250,2.41633,3310.8,3310.6,35.0]
[1722317442660,0.02721775,3310.7,3310.6,35.0]
[1722317442957,2.41626,3310.9,3310.6,35.0]
[1722317443410,0.02721775,3310.8,3310.6,35.0]
[1722317444566,2.41605,3311.2,3310.6,35.0]
[1722317444567,2.41605,3311.2,3310.7,1.0684036]
[1722317444863,2.41605,3311.2,3310.9,1.008]
[1722317445998,2.41613,3311.1,3310.7,1.008]
[1722317446156,2.41619,3311.0,3310.7,1.008]
[1722317446305,2.41619,3311.0,3310.8,35.0]
[1722317447170,2.41626,3310.9,3310.8,35.0]
[1722317447324,4.83252,3310.9,3310.8,35.0]
[1722317448534,2.41626,3310.9,3310.8,35.0]
[1722317450453,2.41614,3311.1,3310.8,35.0]
[1722317451109,0.02729375,3311.0,3310.8,35.0]
[1722317452712,0.02729375,3311.0,3310.8,36.008]
[1722317452917,2.41611,3311.1,3310.8,36.008]
[1722317453333,2.41603,3311.3,3310.8,36.008]
[1722317453537,0.02752647,3311.2,3310.9,2.43440472]
[1722317453740,2.41577,3311.6,3310.9,2.43440472]
[1722317453955,0.02752647,3311.5,3310.9,2.43440472]
[1722317454977,0.02752647,3311.5,3310.9,2.374]
[1722317456085,2.41597,3311.3,3310.9,2.374]
[1722317456365,2.41597,3311.3,3310.9,2.43440031]
[1722317456925,0.02764044,3311.2,3310.9,2.374]
[1722317457253,2.41597,3311.3,3311.0,35.0]
[1722317457433,0.02764044,3311.1,3311.0,35.0]
[1722317457625,2.41597,3311.3,3311.0,35.0]
[1722317457963,0.02764044,3311.2,3311.0,35.0]
[1722317458335,5.07658104,3311.1,3311.0,35.0]
[1722317458524,2.41634,3310.8,3310.5,3.4876]
[1722317459039,0.02764044,3310.7,3310.6,35.0]
[1722317459434,2.41634,3310.8,3310.6,35.0]
[1722317459855,0.02764044,3310.7,3310.6,35.0]
[1722317460228,2.41634,3310.8,3310.6,35.0]
[1722317460536,0.02764044,3310.7,3310.6,35.0]
[1722317460732,2.41634,3310.8,3310.6,35.0]
[1722317460934,4.86044044,3310.7,3310.6,35.0]
[1722317461157,2.41691,3310.0,3309.5,3.454]
[1722317461362,2.41679,3310.2,3309.5,3.454]
[1722317461564,2.44453121,3309.9,3309.6,35.0]
[1722317461764,2.41713,3309.7,3309.6,35.0]
[1722317461961,4.83426,3309.7,3309.6,35.0]
[1722317462366,4.86157273,3309.7,3309.6,35.0]
[1722317462547,4.86157273,3309.7,3308.9,2.446]
[1722317462548,0.02731273,3309.7,3308.9,2.446]
[1722317462748,2.41698,3310.0,3308.9,2.446]
[1722317462749,2.41729,3309.5,3309.0,1.008]
[1722317463086,2.41751,3309.2,3309.0,1.008]
[1722317463547,9.78707,3309.8,3309.1,37.41756]
[1722317463753,7.37,3309.8,3309.4,1.008]
[1722317464167,7.37,3309.8,3309.6,1.008]
[1722317465182,7.37,3309.8,3309.6,3.42518]
[1722317465753,7.37,3309.8,3309.7,35.0]
[1722317465953,2.4167,3310.3,3309.7,38.04901288]
[1722317466185,2.4167,3310.3,3309.9,1.008]
[1722317466349,2.41655,3310.5,3309.9,1.008]
[1722317466846,2.41655,3310.5,3310.0,35.0]
[1722317467070,2.41664,3310.4,3310.0,35.0]
[1722317467274,2.4167,3310.3,3310.0,35.0]
[1722317468484,2.2764,3311.0,3310.0,40.42981288]
[1722317468687,2.41626,3310.9,3310.1,2.47723941]
[1722317468882,2.41634,3310.8,3310.1,2.41683]
[1722317469106,2.41642,3310.7,3310.0,37.3808]
[1722317469249,2.41648,3310.6,3310.0,37.3808]
[1722317470765,2.41633,3310.8,3310.0,39.79769]
[1722317471080,2.41633,3310.8,3310.1,2.41683]
[1722317471408,2.41633,3310.8,3310.2,3.04901288]
[1722317472869,2.41619,3311.0,3310.3,2.41669]
[1722317473484,2.41627,3310.9,3310.2,5.46577288]
[1722317473680,2.41633,3310.8,3310.2,5.46577288]
[1722317473880,2.41622,3311.0,3310.3,2.96325729]
[1722317474404,2.41619,3311.0,3310.3,2.96325729]
[1722317475009,0.02687565,3310.9,3310.4,2.41661]
[1722317475173,0.02687565,3310.9,3310.5,0.06040727]
[1722317475367,2.41612,3311.1,3310.5,0.06040727]
[1722317475594,0.02687565,3311.0,3310.6,2.4169]
[1722317475998,2.41591,3311.4,3310.7,0.06040728]
[1722317475999,2.41602,3311.3,3310.7,0.06040728]
[1722317476245,2.41604,3311.2,3310.7,0.06040728]
[1722317476397,2.44291565,3311.2,3310.7,0.06040728]
[1722317476598,2.41619,3311.0,3310.6,2.4169]
[1722317476969,2.41604,3311.2,3310.6,2.4169]
[1722317477494,0.02687565,3311.1,3310.6,2.4169]
[1722317477699,2.41591,3311.4,3310.7,2.47678349]
[1722317477884,9.78576,3311.6,3310.6,2.4169]
[1722317477885,0.02696589,3311.3,3310.9,2.41621]
[1722317478212,9.78576,3311.6,3311.0,0.06039783]
[1722317478384,0.02696589,3311.2,3311.0,35.06039783]
[1722317478706,0.02696589,3311.1,3311.0,35.06039783]
[1722317478920,9.78576,3311.6,3311.0,35.06039783]
[1722317479210,0.02696589,3311.5,3311.0,35.06039783]
[1722317480428,0.02696589,3311.5,3311.0,35.0]
[1722317480801,2.41587,3311.5,3311.0,35.0]
[1722317481004,0.02696589,3311.4,3311.0,35.0]
[1722317481313,2.44288589,3311.4,3311.0,35.0]
[1722317482135,2.41611,3311.1,3311.0,35.0]
[1722317483425,2.44325155,3311.1,3311.0,35.0]
[1722317485021,4.85936155,3311.1,3311.0,35.0]
[1722317489649,2.44325155,3311.1,3311.0,35.0]
[1722317492747,2.41619,3311.0,3310.8,1.007]
[1722317493151,2.41619,3311.0,3310.9,35.0]
[1722317495223,2.41608,3311.2,3310.9,35.0]
[1722317495428,2.41611,3311.1,3310.9,35.0]
[1722317496138,0.02778766,3311.0,3310.9,35.0]
[1722317502366,2.41599,3311.3,3310.9,35.0]
[1722317502575,0.02778766,3311.2,3310.9,35.0]
[1722317502780,2.41599,3311.3,3310.9,35.0]
[1722317502982,0.02778766,3311.2,3310.9,35.0]
[1722317503184,2.41583,3311.5,3310.9,35.0]
[1722317503501,0.02778766,3311.1,3310.9,35.0]
[1722317503797,2.41589,3311.4,3311.0,1.007]
[1722317505399,2.41589,3311.4,3310.8,5.83841]
[1722317505807,2.41589,3311.4,3311.1,35.0]
[1722317510202,3.744509,3311.6,3311.1,35.0]
[1722317510603,7.37,3311.7,3311.1,35.0]
[1722317510843,2.41561,3311.8,3311.1,35.0]
[1722317511051,2.41561,3311.8,3311.2,1.007]
[1722317511209,0.02795381,3311.7,3311.2,1.007]
[1722317512056,2.41575,3311.6,3311.2,1.007]
[1722317512705,0.02795381,3311.5,3311.2,1.007]
[1722317513841,0.02795381,3311.5,3311.3,35.0]